bitfinex/quotes_ETHUSD_20250904
["timestamp","ask_amount","ask_price","bid_price","bid_amount"]
[1756957774126,3.1136,4402.9,4402.8,0.3255]
[1756957775426,3.1136,4402.9,4402.8,0.8113]
[1756957775920,0.1136,4402.9,4402.8,3.51898191]
[1756957776133,0.1136,4402.9,4402.8,4.09801548]
[1756957776508,0.1136,4402.9,4402.8,1.82673357]
[1756957776711,0.1136,4402.9,4402.8,1.2477]
[1756957777029,0.1136,4402.9,4402.8,0.8113]
[1756957777207,0.1136,4402.9,4402.8,3.51898191]
[1756957777815,0.1136,4402.9,4402.8,1.2477]
[1756957778231,0.1136,4402.9,4402.8,3.51898191]
[1756957780626,0.1136,4402.9,4402.8,1.2477]
[1756957780808,0.1136,4402.9,4402.8,0.8113]
[1756957781903,0.1136,4402.9,4402.8,3.08258191]
[1756957782307,0.1136,4402.9,4402.8,3.51898191]
[1756957782945,2.27150982,4404.3,4402.8,1.61091264]
[1756957783243,3.0,4403.7,4403.4,2.27092207]
[1756957783550,3.0,4403.7,4403.5,2.75671902]
[1756957783744,3.0,4403.7,4403.6,0.7762]
[1756957784919,3.0,4403.7,4403.6,0.2904]
[1756957785124,3.0,4403.7,4403.4,3.884]
[1756957785514,3.0,4403.7,4403.4,4.3698]
[1756957785917,3.0,4403.7,4403.6,0.2904]
[1756957786322,3.0,4403.7,4403.6,2.56126928]
[1756957786534,3.0,4403.7,4403.6,1.2126]
[1756957786808,0.001,4403.8,4403.7,2.27081772]
[1756957787004,0.001,4403.8,4403.7,3.48341772]
[1756957787411,0.001,4403.8,4403.7,3.04701772]
[1756957787606,0.001,4403.8,4403.7,6.93001772]
[1756957788049,0.2996,4403.8,4402.3,6.804]
[1756957788350,13.06455852,4403.4,4402.9,3.883]
[1756957788560,0.4712,4403.3,4402.9,3.883]
[1756957788850,3.0,4403.2,4402.8,0.029]
[1756957789152,3.0,4403.2,4402.8,3.912]
[1756957789153,0.2986,4403.0,4402.8,3.912]
[1756957790255,0.2986,4403.0,4402.8,0.029]
[1756957790418,5.74243032,4402.9,4402.8,0.029]
[1756957790838,6.04103032,4402.9,4402.8,0.029]
[1756957792920,6.55613032,4402.9,4402.8,0.029]
[1756957793123,7.04185962,4402.9,4402.8,0.029]
[1756957793366,6.55613032,4402.9,4402.8,0.029]
[1756957793845,6.15463032,4402.9,4402.8,0.029]
[1756957795136,10.03763032,4402.9,4402.8,0.029]
[1756957797565,19.50881375,4402.9,4402.8,0.029]
[1756957800692,0.1136,4402.9,4402.8,0.7917]
[1756957800965,0.1136,4403.1,4402.9,2.27120856]
[1756957801129,0.1136,4403.1,4403.0,0.7627]
[1756957801325,9.58478343,4403.1,4402.8,0.5018]
[1756957801563,0.00558496,4403.0,4402.8,0.029]
[1756957801778,3.0,4403.0,4402.8,0.029]
[1756957802964,5.27121959,4403.0,4402.8,0.029]
[1756957803461,5.55793032,4402.9,4402.8,0.029]
[1756957803757,5.98963032,4402.9,4402.8,0.029]
[1756957804128,9.43993032,4402.9,4402.8,0.029]
[1756957804325,9.87163032,4402.9,4402.8,0.029]
[1756957807365,7.1687,4402.9,4402.8,0.029]
[1756957807555,3.0,4402.9,4402.8,1.2623]
[1756957807758,3.1136,4402.9,4402.8,1.2623]
[1756957808569,3.1136,4402.9,4402.8,0.3189]
[1756957808570,5.78633032,4402.9,4402.8,0.3189]
[1756957808781,3.1136,4402.9,4402.8,0.3189]
[1756957809073,3.4003,4402.9,4402.8,0.029]
[1756957809269,5.67153032,4402.9,4402.8,0.029]
[1756957809773,6.10323032,4402.9,4402.8,0.029]
[1756957810162,6.10323032,4402.9,4402.8,0.3189]
[1756957810163,3.1136,4402.9,4402.8,0.3189]
[1756957810340,0.1136,4402.9,4402.8,3.53358191]
[1756957810656,3.0,4403.5,4403.4,2.27096203]
[1756957810859,0.001,4403.8,4403.5,1.2333]
[1756957811153,10.1336,4403.6,4403.5,0.7627]
[1756957811675,10.1336,4403.6,4403.5,1.2333]
[1756957811842,10.1336,4403.6,4403.5,0.2899]
[1756957812042,3.0,4403.5,4403.1,0.9434]
[1756957812449,0.1136,4403.2,4403.1,0.9434]
[1756957812981,0.1136,4403.2,4403.1,1.2333]
[1756957813188,0.1136,4403.2,4403.1,0.7627]
[1756957813683,0.1136,4403.2,4403.1,1.2333]
[1756957817282,3.0,4403.5,4403.2,2.27107116]
[1756957817486,0.1136,4403.4,4403.3,0.9434]
[1756957817662,0.1136,4403.4,4403.3,1.2333]
[1756957817864,0.1136,4403.4,4403.3,3.504324]
[1756957818074,0.1136,4403.4,4403.3,3.89009159]
[1756957818273,3.0,4403.5,4403.4,2.27097243]
[1756957818465,3.0,4403.5,4403.4,3.50427243]
[1756957819462,7.1336,4403.6,4403.4,3.50427243]
[1756957819865,10.1336,4403.6,4403.5,0.9434]
[1756957820066,10.1336,4403.6,4403.5,4.50843165]
[1756957820266,0.001,4403.8,4403.5,4.50843165]
[1756957820267,0.001,4403.8,4403.7,2.27081772]
[1756957820762,0.001,4403.8,4403.7,3.50411772]
[1756957823400,0.001,4403.8,4403.7,7.38411772]
[1756957823574,0.001,4403.8,4403.7,5.1133]
[1756957823773,0.001,4403.8,4403.7,4.6427]
[1756957824290,0.001,4403.8,4403.7,4.95608474]
[1756957826283,0.001,4403.8,4403.7,7.22690246]
[1756957826478,0.001,4403.8,4403.7,7.69750246]
[1756957829169,0.001,4403.8,4403.7,8.48950246]
[1756957829402,0.001,4403.8,4403.7,8.60310246]
[1756957830725,0.001,4403.8,4403.7,3.46050246]
[1756957830987,0.001,4403.8,4403.7,7.33950246]
[1756957831190,0.001,4403.8,4403.7,7.22590246]
[1756957832103,0.001,4403.8,4403.7,7.66940246]
[1756957832504,0.2978,4403.8,4403.7,4.19138474]
[1756957832803,0.001,4403.8,4403.7,3.878]
[1756957833008,0.001,4403.8,4403.7,6.44661772]
[1756957833307,0.001,4403.8,4403.7,7.34431772]
[1756957833604,0.001,4403.8,4403.7,7.45791772]
[1756957836813,0.001,4403.8,4403.7,8.24991772]
[1756957837106,0.001,4403.8,4403.7,9.47660156]
[1756957838706,0.001,4403.8,4403.7,1.63808384]
[1756957838908,0.2978,4403.8,4403.7,3.877]
[1756957839207,0.001,4403.8,4403.7,6.44561772]
[1756957839390,0.001,4403.8,4403.7,7.34331772]
[1756957839592,0.001,4403.8,4403.7,7.45691772]
[1756957842729,0.001,4403.8,4403.7,7.01341772]
[1756957843012,0.001,4403.8,4403.7,8.16080012]
[1756957844786,0.001,4403.8,4403.7,8.60430012]
[1756957845633,0.001,4403.8,4403.7,1.5587824]
[1756957845925,0.001,4403.8,4403.7,6.26041772]
[1756957846096,0.001,4403.8,4403.7,6.55821772]
[1756957846429,0.2978,4403.8,4403.7,3.876]
[1756957846721,0.2978,4403.8,4403.7,6.14681772]
[1756957848994,0.001,4403.8,4403.7,6.44461772]
[1756957849400,0.001,4403.8,4403.7,6.14681772]
[1756957849800,0.2978,4403.8,4403.7,6.14681772]
[1756957851023,0.75,4403.8,4403.7,6.14681772]
[1756957851187,0.2978,4403.8,4403.7,6.14681772]
[1756957851392,0.001,4403.8,4403.7,6.14681772]
[1756957853233,0.001,4403.8,4403.7,6.44461772]
[1756957854000,0.001,4403.8,4403.7,7.95632887]
[1756957854194,0.001,4403.8,4403.7,8.06992887]
[1756957855127,0.001,4403.8,4403.7,8.51342887]
[1756957856620,0.001,4403.8,4403.7,8.06992887]
[1756957857427,0.001,4403.8,4403.7,8.51342887]
[1756957858445,0.001,4403.8,4403.7,7.61572887]
[1756957859203,0.001,4403.8,4403.7,8.06992887]
[1756957860358,0.001,4403.8,4403.7,9.30832887]
[1756957861050,0.3132,4403.8,4403.7,1.17111115]
[1756957861207,0.3132,4403.8,4403.7,6.25841772]
[1756957862053,0.001,4403.8,4403.7,6.25841772]
[1756957862354,0.001,4403.8,4403.7,7.00751772]
[1756957862530,0.001,4403.8,4403.7,6.25841772]
[1756957862711,0.3132,4403.8,4403.7,6.25841772]
[1756957863449,0.001,4403.8,4403.7,7.33059157]
[1756957865047,0.001,4403.8,4403.7,8.07969157]
[1756957865550,0.001,4403.8,4403.7,7.62929157]
[1756957865717,0.001,4403.8,4403.7,7.33059157]
[1756957867238,0.001,4403.8,4403.7,7.62929157]
[1756957867939,0.001,4403.8,4403.7,8.07969157]
[1756957869153,0.001,4403.8,4403.7,7.62929157]
[1756957869352,0.001,4403.8,4403.7,7.33059157]
[1756957870469,0.3132,4403.8,4403.7,5.05977385]
[1756957870636,0.3132,4403.8,4403.7,6.25841772]
[1756957872457,0.001,4403.8,4403.7,6.55711772]
[1756957873355,0.001,4403.8,4403.7,7.00751772]
[1756957874343,1.2158,4403.8,4403.5,1.746]
[1756957874534,1.2158,4403.8,4403.0,3.872]
[1756957874535,2.27087546,4403.6,4403.0,3.872]
[1756957874734,0.3122,4403.1,4403.0,3.872]
[1756957874936,1.2148,4403.1,4403.0,3.872]
[1756957876136,0.7607,4403.1,4403.0,3.872]
[1756957876563,5.27117874,4403.0,4402.8,0.029]
[1756957876771,5.27123032,4402.9,4402.8,0.029]
[1756957877078,3.48603032,4402.9,4402.8,0.029]
[1756957877538,1.2148,4402.9,4402.8,0.029]
[1756957878350,3.48603032,4402.9,4402.8,0.029]
[1756957878554,17.27146165,4402.9,4402.8,0.029]
[1756957879186,15.00023133,4402.9,4402.8,0.029]
[1756957880051,4.2148,4402.9,4402.8,0.029]
[1756957881969,13.50603032,4402.9,4402.8,0.029]
[1756957882187,11.2348,4402.9,4402.8,0.029]
[1756957882357,10.7807,4402.9,4402.8,0.029]
[1756957883154,13.05193032,4402.9,4402.8,0.029]
[1756957883355,10.7807,4402.9,4402.8,0.029]
[1756957883973,13.05193032,4402.9,4402.8,0.029]
[1756957884175,10.7807,4402.9,4402.8,0.029]
[1756957884375,10.8943,4402.9,4402.8,0.029]
[1756957885249,10.4458,4402.9,4402.8,0.029]
[1756957885662,10.8943,4402.9,4402.8,0.029]
[1756957886286,13.16553032,4402.9,4402.8,0.029]
[1756957888391,24.40506165,4402.9,4402.8,0.029]
[1756957889058,28.27706165,4402.9,4402.8,0.029]
[1756957895198,24.40506165,4402.9,4402.8,0.029]
[1756957895492,27.82196165,4402.9,4402.8,0.029]
[1756957896761,28.30826165,4402.9,4402.8,0.029]
[1756957898001,27.82196165,4402.9,4402.8,0.029]
[1756957903287,28.30798593,4402.9,4402.8,0.029]
[1756957904578,14.48962428,4402.9,4402.8,0.3415]
[1756957904784,16.7608546,4402.9,4402.8,0.3415]
[1756957905016,10.61962428,4402.9,4402.8,0.8364]
[1756957905217,14.49052851,4402.9,4402.8,1.2692]
[1756957905420,7.1336,4402.9,4402.8,1.62366319]
[1756957905587,7.1336,4402.9,4402.8,1.2692]
[1756957905781,10.1336,4402.9,4402.8,1.2692]
[1756957908723,10.1336,4402.9,4402.8,0.8364]
[1756957908901,10.1336,4402.9,4402.8,1.2692]
[1756957909214,10.1336,4402.9,4402.8,0.8364]
[1756957909634,10.1336,4402.9,4402.8,1.2692]
[1756957910195,10.1346,4402.9,4402.8,1.2692]
[1756957910794,10.1346,4402.9,4402.8,0.8364]
[1756957911293,10.1346,4402.9,4402.8,0.3415]
[1756957912622,10.9165,4402.9,4402.8,0.029]
[1756957912922,18.02873407,4402.9,4402.8,0.029]
[1756957913216,18.35017388,4402.9,4402.8,0.029]
[1756957913793,11.33017388,4402.9,4402.8,0.029]
[1756957914294,10.52243407,4402.9,4402.8,0.029]
[1756957917723,10.05093407,4402.9,4402.8,0.029]
[1756957917906,10.04993407,4402.9,4402.8,0.029]
[1756957919529,19.52073995,4402.9,4402.8,0.029]
[1756957919831,26.54073995,4402.9,4402.8,0.029]
[1756957921621,27.00773995,4402.9,4402.8,0.029]
[1756957927231,27.00773995,4402.9,4402.8,0.8344]
[1756957927232,7.62130375,4402.9,4402.8,0.8344]
[1756957927446,7.1346,4402.9,4402.8,1.2718]
[1756957927742,7.1346,4402.9,4402.8,3.8977984]
[1756957928127,0.1146,4402.9,4402.8,3.8977984]
[1756957928346,0.1146,4402.9,4402.8,1.62651649]
[1756957928717,0.1146,4402.9,4402.8,3.8977984]
[1756957931337,0.1146,4402.9,4402.8,1.62651649]
[1756957932443,0.1146,4402.9,4402.8,3.8977984]
[1756957933361,0.001,4402.9,4402.8,3.8977984]
[1756957933656,0.001,4402.9,4402.8,7.7617984]
[1756957933860,0.001,4402.9,4402.8,1.18911649]
[1756957934147,12.58540588,4402.9,4402.8,0.3413]
[1756957934552,12.88520588,4402.9,4402.8,0.029]
[1756957934722,13.22970668,4402.9,4402.8,0.029]
[1756957935037,15.967937,4402.9,4402.8,0.029]
[1756957935912,15.6234362,4402.9,4402.8,0.029]
[1756957937249,12.88520588,4402.9,4402.8,0.029]
[1756957937551,16.44940588,4402.9,4402.8,0.3413]
[1756957937709,16.44940588,4402.9,4402.8,0.8344]
[1756957938514,16.74920588,4402.9,4402.8,0.029]
[1756957938714,17.56070668,4402.9,4402.8,0.029]
[1756957939120,18.02960668,4402.9,4402.8,0.029]
[1756957939445,20.300837,4402.9,4402.8,0.029]
[1756957939938,27.80859352,4402.9,4402.8,0.029]
[1756957940849,37.2793994,4402.9,4402.8,0.029]
[1756957944130,2.27138509,4402.6,4402.5,0.004]
[1756957944317,19.55663325,4402.6,4402.5,0.004]
[1756957944632,28.59874829,4402.6,4402.5,0.004]
[1756957944819,28.68982266,4402.6,4402.5,0.004]
[1756957945613,38.16062854,4402.6,4402.5,0.004]
[1756957947452,37.69172854,4402.6,4402.5,0.004]
[1756957948731,37.68972854,4402.6,4402.5,0.004]
[1756957950438,26.01472854,4402.6,4402.5,0.004]
[1756957950652,19.29662186,4402.6,4402.5,0.7839]
[1756957950965,9.56188025,4402.6,4402.5,1.2459]
[1756957951129,12.56188025,4402.6,4402.5,1.2459]
[1756957951562,0.09107437,4402.6,4402.5,1.2459]
[1756957951748,3.863,4402.9,4402.5,1.37129]
[1756957951950,3.001,4402.9,4402.6,0.9562]
[1756957952261,12.47180588,4402.9,4402.8,0.2857]
[1756957952553,12.47180588,4402.9,4402.8,1.2419]
[1756957955573,0.001,4402.9,4402.8,1.379029]
[1756957958645,0.001,4402.9,4402.8,1.279029]
[1756957964080,0.001,4402.9,4402.8,3.55031091]
[1756957964284,0.001,4402.9,4402.8,3.66391091]
[1756957964747,0.001,4402.9,4402.8,3.68662372]
[1756957964947,0.001,4402.9,4402.8,3.66391091]
[1756957967145,0.001,4402.9,4402.8,7.52291091]
[1756957967674,0.001,4402.9,4402.8,8.20131091]
[1756957967854,0.001,4402.9,4402.8,8.31491091]
[1756957970158,0.001,4402.9,4402.8,17.78571679]
[1756957972575,0.001,4402.9,4402.8,18.01321679]
[1756957975378,0.001,4402.9,4402.8,24.81321679]
[1756957975578,0.001,4402.9,4402.8,24.58571679]
[1756957979670,0.001,4402.9,4402.8,25.89827761]
[1756957980664,0.001,4402.9,4402.8,28.89827761]
[1756957980864,1e-08,4403.8,4403.7,3.06281772]
[1756957981190,1e-08,4403.8,4403.7,12.33349664]
[1756957981485,1e-08,4403.8,4403.7,13.54518847]
[1756957982872,1e-08,4403.8,4403.7,13.63616527]
[1756957984665,1e-08,4403.8,4403.7,20.43616527]
[1756957985762,1e-08,4403.8,4403.7,20.66366527]
[1756957987508,0.001,4404.9,4404.7,3.28980217]
[1756957987509,1e-08,4404.8,4404.7,3.28980217]
[1756957987711,1e-08,4404.8,4404.7,9.21678239]
[1756957987877,1e-08,4404.8,4404.7,10.45118239]
[1756957988208,1e-08,4404.8,4404.7,17.36478239]
[1756957988580,1e-08,4404.8,4404.7,16.90198239]
[1756957988776,1.22360001,4404.8,4404.7,12.04988239]
[1756957989005,1.22360001,4404.8,4404.7,4.12890217]
[1756957989209,1.22360001,4404.8,4404.7,7.98190217]
[1756957991598,0.76150001,4404.8,4404.7,8.77390217]
[1756957991780,1.22360001,4404.8,4404.7,8.77390217]
[1756957992297,0.76150001,4404.8,4404.7,8.77390217]
[1756957992608,0.76150001,4404.8,4404.7,9.87833119]
[1756957993411,1.22360001,4404.8,4404.7,7.98090217]
[1756957993614,0.30640001,4404.8,4404.7,7.98090217]
[1756957993797,0.76150001,4404.8,4404.7,7.98090217]
[1756957994615,0.76150001,4404.8,4404.7,4.12890217]
[1756957994814,0.30640001,4404.8,4404.7,7.98090217]
[1756957995015,0.30640001,4404.8,4404.7,9.00603119]
[1756957995510,1e-08,4404.8,4404.7,9.00603119]
[1756957995815,1e-08,4404.8,4404.7,5.38153119]
[1756957996013,0.76150001,4404.8,4404.7,7.98090217]
[1756957997117,0.30640001,4404.8,4404.7,7.98090217]
[1756957997317,1e-08,4404.8,4404.7,9.08560217]
[1756957997497,1e-08,4404.8,4404.7,10.72599119]
[1756957997999,0.00100001,4404.8,4404.7,10.72599119]
[1756957998603,0.00100001,4404.8,4404.7,10.26709119]
[1756957998811,0.00100001,4404.8,4404.7,9.95439119]
[1756957999210,0.76250001,4404.8,4404.7,9.95439119]
[1756957999622,0.00100001,4404.8,4404.7,9.95439119]
[1756958000216,0.30740001,4404.8,4404.7,9.95439119]
[1756958001102,0.00100001,4404.8,4404.7,9.95439119]
[1756958001414,0.76250001,4404.8,4404.7,9.95439119]
[1756958003896,1.22460001,4404.8,4404.7,1.8586]
[1756958004229,1.22460001,4404.8,4404.7,5.595]
[1756958012935,0.76250001,4404.8,4404.7,5.595]
[1756958013610,1.25100001,4404.8,4404.7,5.595]
[1756958014633,0.76250001,4404.8,4404.7,5.595]
[1756958015319,1.25100001,4404.8,4404.6,0.004]
[1756958015519,10.8969667,4404.7,4404.6,0.004]
[1756958015723,16.65576887,4404.7,4404.6,0.004]
[1756958015909,17.40166887,4404.7,4404.6,0.004]
[1756958018538,7.7075,4404.7,4404.6,0.004]
[1756958018739,14.6428667,4404.7,4404.6,0.004]
[1756958019928,3.8595,4404.7,4404.6,0.004]
[1756958023426,3.4176,4404.7,4404.6,0.004]
[1756958023612,3.8595,4404.7,4404.6,0.004]
[1756958023814,4.348,4404.7,4404.6,0.004]
[1756958024014,6.61830217,4404.7,4404.6,0.004]
[1756958025614,6.12980217,4404.7,4404.6,0.004]
[1756958025928,3.8595,4404.7,4404.6,0.004]
[1756958026128,6.12980217,4404.7,4404.6,0.004]
[1756958026523,13.14980217,4404.7,4404.6,0.004]
[1756958029643,12.70790217,4404.7,4404.6,0.004]
[1756958030016,10.4376,4404.7,4404.6,0.004]
[1756958030217,10.1336,4404.7,4404.6,0.004]
[1756958030418,10.1336,4404.7,4404.6,0.502]
[1756958030720,10.1336,4404.7,4404.6,0.8128]
[1756958033361,10.1336,4404.7,4404.6,4.6588]
[1756958034441,7.1336,4404.7,4404.6,7.66897346]
[1756958034639,7.02,4404.7,4404.6,8.25157346]
[1756958038446,0.00100001,4404.8,4404.7,2.27030217]
[1756958038643,0.00100001,4404.8,4404.7,4.01530217]
[1756958038849,0.00100001,4404.8,4404.7,6.65013469]
[1756958041848,0.00100001,4404.8,4404.7,6.63113469]
[1756958045839,0.00100001,4404.8,4404.7,6.18113469]
[1756958047544,0.00100001,4404.8,4404.7,6.14223469]
[1756958051768,0.00100001,4404.8,4404.7,6.59223469]
[1756958052878,0.00100001,4404.8,4404.7,5.37233469]
[1756958053081,0.29270001,4404.8,4404.7,5.37233469]
[1756958053370,0.29270001,4404.8,4404.6,3.12777346]
[1756958053371,10.69268414,4404.8,4404.6,3.846]
[1756958053570,0.9425,4404.7,4404.6,3.846]
[1756958053973,3.50450217,4404.7,4404.6,3.846]
[1756958054194,6.50450217,4404.7,4404.6,0.004]
[1756958055189,15.9619863,4404.7,4404.6,0.004]
[1756958055394,6.50450217,4404.7,4404.6,0.004]
[1756958057391,10.34650217,4404.7,4404.6,0.004]
[1756958060292,6.00710217,4404.7,4404.6,0.004]
[1756958061496,3.7368,4404.7,4404.6,0.004]
[1756958061888,6.00710217,4404.7,4404.6,0.004]
[1756958062289,10.3117,4404.7,4404.6,0.004]
[1756958062480,7.02,4404.7,4404.6,1.2239]
[1756958062679,7.02,4404.7,4404.6,3.49425372]
[1756958063682,7.02,4404.7,4404.6,3.04425372]
[1756958064277,7.02,4404.7,4404.6,0.4846]
[1756958064590,7.02,4404.7,4404.6,0.004]
[1756958065298,7.3117,4404.7,4404.6,0.004]
[1756958068208,13.52450217,4404.7,4404.6,0.004]
[1756958069712,13.52450217,4404.7,4404.2,0.004]
[1756958069713,2.27050836,4404.3,4404.2,0.004]
[1756958070007,28.14007662,4404.3,4404.2,0.004]
[1756958070207,29.35257662,4404.3,4404.2,0.004]
[1756958070410,29.35257662,4404.3,4403.8,0.004]
[1756958070411,3.0,4404.2,4403.8,0.004]
[1756958070709,14.72819872,4403.9,4403.8,0.004]
[1756958070914,18.97399872,4403.9,4403.8,0.004]
[1756958071113,19.89529872,4403.9,4403.8,0.004]
[1756958073909,3.0,4403.8,4402.8,0.029]
[1756958074109,3.0,4403.0,4402.8,0.029]
[1756958074312,3.1136,4403.0,4402.8,0.5187]
[1756958074517,3.1136,4403.0,4402.9,0.7805]
[1756958075319,3.4048,4403.0,4402.8,0.029]
[1756958077222,19.49559941,4402.9,4402.8,0.029]
[1756958077423,10.03253032,4402.9,4402.8,0.029]
[1756958077725,9.83183032,4402.9,4402.8,0.029]
[1756958077894,10.32373032,4402.9,4402.8,0.029]
[1756958079006,19.78121445,4402.9,4402.8,0.029]
[1756958079409,2.27138509,4402.6,4402.4,0.004]
[1756958079604,28.0329899,4402.5,4402.4,0.004]
[1756958079813,29.23990494,4402.5,4402.4,0.004]
[1756958080803,28.74800494,4402.5,4402.4,0.004]
[1756958082025,28.31860494,4402.5,4402.4,0.004]
[1756958082228,19.47748413,4402.5,4402.4,0.004]
[1756958082432,23.31848413,4402.5,4402.4,0.004]
[1756958082920,19.47748413,4402.5,4402.4,0.004]
[1756958083121,19.76868413,4402.5,4402.4,0.004]
[1756958083503,22.04012081,4402.5,4402.4,0.004]
[1756958084028,21.74892081,4402.5,4402.4,0.004]
[1756958084432,22.04012081,4402.5,4402.4,0.004]
[1756958087313,22.15372081,4402.5,4402.4,0.004]
[1756958088035,19.59108413,4402.5,4402.4,0.2948]
[1756958088238,21.86252081,4402.5,4402.4,0.2948]
[1756958088424,21.86252081,4402.5,4402.4,0.004]
[1756958088614,22.15372081,4402.5,4402.4,0.004]
[1756958089116,32.04060494,4402.5,4402.4,0.004]
[1756958089634,31.61120494,4402.5,4402.4,0.004]
[1756958089824,22.15372081,4402.5,4402.4,0.004]
[1756958090931,31.61120494,4402.5,4402.4,0.004]
[1756958092838,32.04060494,4402.5,4402.4,0.004]
[1756958093944,22.58312081,4402.5,4402.4,0.004]
[1756958094122,32.04060494,4402.5,4402.4,0.004]
[1756958095133,31.61120494,4402.5,4402.4,0.004]
[1756958095334,22.15372081,4402.5,4402.4,0.004]
[1756958096733,22.58312081,4402.5,4402.4,0.004]
[1756958096930,22.15372081,4402.5,4402.4,0.004]
[1756958097354,21.86252081,4402.5,4402.4,0.004]
[1756958097655,7.1336,4402.5,4402.4,3.50978827]
[1756958097855,7.1336,4402.5,4402.4,1.2383]
[1756958098216,7.02,4402.5,4402.4,1.2383]
[1756958098416,7.02,4402.5,4402.4,3.50978827]
[1756958099319,7.02,4402.5,4402.4,1.2383]
[1756958100851,16.47748413,4402.6,4402.4,1.2383]
[1756958101070,16.47748413,4402.6,4402.5,0.4514]
[1756958101245,16.47748413,4402.6,4402.5,0.7568]
[1756958101450,7.02,4402.6,4402.5,0.7568]
[1756958105545,7.3354,4402.6,4402.4,0.004]
[1756958105753,3.441,4402.5,4402.4,0.004]
[1756958105945,5.71243668,4402.5,4402.4,0.004]
[1756958106146,6.02783668,4402.5,4402.4,0.004]
[1756958106648,13.04783668,4402.5,4402.4,0.004]
[1756958106848,10.7764,4402.5,4402.4,0.004]
[1756958107342,10.02,4402.5,4402.4,0.004]
[1756958107549,10.02,4402.5,4402.4,0.3094]
[1756958107965,10.02,4402.5,4402.4,0.7608]
[1756958108172,10.1336,4402.5,4402.4,0.7608]
[1756958108740,10.1336,4402.5,4402.4,0.004]
[1756958108941,10.449,4402.5,4402.4,0.004]
[1756958109968,10.1336,4402.5,4402.4,0.004]
[1756958110346,10.449,4402.5,4402.4,0.004]
[1756958110547,12.72043668,4402.5,4402.4,0.004]
[1756958110748,10.89,4402.5,4402.4,0.004]
[1756958111094,10.449,4402.5,4402.4,0.004]
[1756958111671,10.1336,4402.5,4402.4,0.004]
[1756958111842,10.1336,4402.5,4402.4,0.7608]
[1756958113637,10.1336,4402.5,4402.4,0.3094]
[1756958113836,10.1336,4402.5,4402.4,0.004]
[1756958114686,10.1336,4402.5,4402.4,0.7608]
[1756958120350,10.1346,4402.5,4402.4,0.7608]
[1756958120579,10.1346,4402.5,4402.4,1.2319]
[1756958121099,10.1346,4402.5,4402.4,0.7608]
[1756958127695,0.1146,4402.5,4402.4,0.7608]
[1756958128497,0.43,4402.5,4402.4,0.004]
[1756958130875,0.8956,4402.5,4402.4,0.004]
[1756958131672,6.16703668,4402.5,4402.4,0.004]
[1756958132705,6.64863668,4402.5,4402.4,0.004]
[1756958137180,7.13694981,4402.5,4402.4,0.004]
[1756958138617,6.65534981,4402.5,4402.4,0.004]
[1756958139010,10.49134981,4402.5,4402.4,0.004]
[1756958139908,10.58240966,4402.5,4402.4,0.004]
[1756958146218,10.09409653,4402.5,4402.4,0.004]
[1756958146615,10.58171168,4402.5,4402.4,0.004]
[1756958147723,10.09409653,4402.5,4402.4,0.004]
[1756958148234,17.11409653,4402.5,4402.4,0.004]
[1756958150827,17.6018661,4402.5,4402.4,0.004]
[1756958152691,17.1362661,4402.5,4402.4,0.004]
[1756958152891,17.6018661,4402.5,4402.4,0.004]
[1756958157202,17.1362661,4402.5,4402.4,0.004]
[1756958157406,17.60172211,4402.5,4402.4,0.004]
[1756958158113,17.60170827,4402.5,4402.4,0.004]
[1756958158526,17.13610827,4402.5,4402.4,0.004]
[1756958158793,16.82070827,4402.5,4402.4,0.7832]
[1756958159205,17.11630827,4402.5,4402.4,0.004]
[1756958160828,17.56930827,4402.5,4402.4,0.004]
[1756958161414,10.99960827,4402.5,4402.4,0.004]
[1756958161603,30.25218601,4402.5,4402.4,0.004]
[1756958162731,19.45612174,4402.5,4402.4,0.004]
[1756958162930,20.02272174,4402.5,4402.4,0.004]
[1756958163122,29.49913521,4402.5,4402.4,0.004]
[1756958164119,10.09330827,4402.5,4402.4,0.004]
[1756958164430,15.73672174,4402.5,4402.4,0.004]
[1756958164601,19.56972174,4402.5,4402.4,0.004]
[1756958166521,20.02272174,4402.5,4402.4,0.004]
[1756958168732,19.56972174,4402.5,4402.4,0.004]
[1756958169137,10.09330827,4402.5,4402.4,0.004]
[1756958169346,20.02272174,4402.5,4402.4,0.004]
[1756958170036,19.56972174,4402.5,4402.4,0.004]
[1756958170241,19.27412174,4402.5,4402.4,0.004]
[1756958173146,19.55952174,4402.5,4402.4,0.004]
[1756958174920,20.01252174,4402.5,4402.4,0.004]
[1756958176154,19.55952174,4402.5,4402.4,0.004]
[1756958176853,20.01252174,4402.5,4402.4,0.004]
[1756958177949,26.57952174,4402.5,4402.4,0.004]
[1756958180358,0.69327159,4402.5,4402.4,0.815]
[1756958180557,0.1146,4402.5,4402.4,1.2745]
[1756958180729,0.1146,4402.5,4402.4,3.90140248]
[1756958189074,0.001,4402.5,4402.4,3.90140248]
[1756958189774,0.001,4402.5,4402.4,7.73040248]
[1756958190576,0.001,4402.5,4402.4,17.32041595]
[1756958190876,0.001,4402.5,4402.4,7.84400248]
[1756958199485,0.001,4402.5,4402.4,7.38450248]
[1756958199670,0.001,4402.5,4402.4,6.57150248]
[1756958199671,0.3077,4402.5,4402.4,6.57150248]
[1756958199871,0.001,4402.5,4402.4,6.57150248]
[1756958200283,0.7359,4402.5,4402.4,6.57150248]
[1756958200658,0.3077,4402.5,4402.4,6.57150248]
[1756958201784,0.001,4402.5,4402.4,7.78660248]